lending/lending_fUSD_20250122
["ID","MTS","AMOUNT","RATE_DAILY","PERIOD"]
[349939651,1737523833688,-500.0,0.00019996,2]
[349939652,1737523833698,-500.0,0.00019996,2]
[349939653,1737523833708,-500.0,0.00019996,2]
[349939654,1737523833717,-500.0,0.00019996,2]
[349939655,1737523833727,-500.0,0.00019996,2]
[349939656,1737523833738,-500.0,0.00019996,2]
[349939657,1737523833747,-500.0,0.00019996,2]
[349939658,1737523833757,-500.0,0.00019996,2]
[349939659,1737523833766,-500.0,0.00019996,2]
[349939660,1737523833775,-500.0,0.00019996,2]
[349939661,1737523833784,-500.0,0.00019996,2]
[349939662,1737523833794,-500.0,0.00019996,2]
[349939663,1737523833804,-500.0,0.00019996,2]
[349939664,1737523833813,-500.0,0.00019996,2]
[349939665,1737523833823,-500.0,0.00019996,2]
[349939666,1737523833832,-500.0,0.00019996,2]
[349939667,1737523833842,-500.0,0.00019996,2]
[349939668,1737523833851,-500.0,0.00019996,2]
[349939669,1737523833861,-500.0,0.00019996,2]
[349939670,1737523833870,-500.0,0.00019996,2]
[349939671,1737523833879,-500.0,0.00019996,2]
[349939672,1737523833889,-500.0,0.00019996,2]
[349939673,1737523833898,-540.48331934,0.00019996,2]
[349939674,1737523833908,-500.0,0.00019996,2]
[349939675,1737523833917,-606.89,0.00019996,2]
[349939676,1737523833926,-530.04009133,0.00019996,2]
[349939677,1737523833936,-500.0,0.00019996,2]
[349939678,1737523833945,-505.15402507,0.00019996,2]
[349939679,1737523833956,-500.0,0.00019996,2]
[349939680,1737523833965,-500.0,0.00019996,2]
[349939681,1737523833974,-500.0,0.00019996,2]
[349939682,1737523833984,-598.84,0.00019996,2]
[349939683,1737523833994,-500.0,0.00019996,2]
[349939684,1737523834003,-500.0,0.00019996,2]
[349939685,1737523834013,-504.39052004,0.00019996,2]
[349939686,1737523834022,-505.1114871,0.00019996,2]
[349939687,1737523834031,-500.0,0.00019996,2]
[349939688,1737523834041,-500.0,0.00019996,2]
[349939689,1737523834051,-500.0,0.00019996,2]
[349939690,1737523834060,-503.80574312,0.00019996,2]
[349939691,1737523834070,-158.082972,0.00019996,2]
[349939692,1737523834080,-650.5,0.00019996,2]
[349939693,1737523834090,-500.0,0.00019996,2]
[349939694,1737523834100,-500.0,0.00019996,2]
[349939695,1737523834109,-500.0,0.00019996,2]
[349939696,1737523834118,-500.0,0.00019996,2]
[349939697,1737523834128,-500.0,0.00019996,2]
[349939698,1737523834138,-506.54819401,0.00019996,2]
[349939699,1737523834147,-383.7997835,0.00019996,2]
[349939700,1737523834157,-500.0,0.00019996,2]
[349939701,1737523834166,-502.35029851,0.00019996,2]
[349939702,1737523834175,-500.0,0.00019996,2]
[349939703,1737523834184,-500.0,0.00019996,2]
[349939704,1737523834194,-500.0,0.00019996,2]
[349939705,1737523834204,-502.32570771,0.00019996,2]
[349939706,1737523834218,-500.0,0.00019996,2]
[349939707,1737523834227,-337.32953058,0.00019996,2]
[349939708,1737523834236,-502.29206811,0.00019996,2]
[349939709,1737523834245,-500.0,0.00019996,2]
[349939710,1737523834255,-501.31677581,0.00019996,2]
[349939711,1737523834264,-639.52,0.00019996,2]
[349939712,1737523834274,-500.0,0.00019996,2]
[349939713,1737523834283,-500.0,0.00019996,2]
[349939714,1737523834294,-500.0,0.00019996,2]
[349939715,1737523834303,-507.31202364,0.00019996,2]
[349939716,1737523834312,-502.96918171,0.00019996,2]
[349939717,1737523834322,-523.54495523,0.00019996,2]
[349939718,1737523834331,-595.58,0.00019996,2]
[349939719,1737523834340,-503.59273306,0.00019996,2]
[349939720,1737523834350,-500.0,0.00019996,2]
[349939721,1737523834360,-500.0,0.00019996,2]
[349939722,1737523834370,-502.20539529,0.00019996,2]
[349939723,1737523834380,-504.70803446,0.00019996,2]
[349939724,1737523834389,-506.60787056,0.00019996,2]
[349939725,1737523834399,-500.0,0.00019996,2]
[349939726,1737523834409,-500.0,0.00019996,2]
[349939727,1737523834419,-500.0,0.00019996,2]
[349939728,1737523834428,-500.0,0.00019996,2]
[349939729,1737523834438,-500.0,0.00019996,2]
[349939730,1737523834451,-596.2776043,0.00019996,2]
[349939731,1737523834464,-500.0,0.00019996,2]
[349939732,1737523834474,-500.0,0.00019996,2]
[349939733,1737523834489,-500.0,0.00019996,2]
[349939734,1737523834501,-500.0,0.00019996,2]
[349939735,1737523834510,-497.39118868,0.00019996,2]
[349939736,1737523834519,-502.23921816,0.00019996,2]
[349939737,1737523834529,-500.0,0.00019996,2]
[349939738,1737523834539,-500.0,0.00019996,2]
[349939739,1737523834548,-505.15344946,0.00019996,2]
[349939740,1737523834557,-500.0,0.00019996,2]
[349939741,1737523834567,-500.0,0.00019996,2]
[349939742,1737523834576,-500.0,0.00019996,2]
[349939743,1737523834585,-500.85208095,0.00019996,2]
[349939744,1737523834594,-500.0,0.00019996,2]
[349939745,1737523834604,-501.49187176,0.00019996,2]
[349939746,1737523834614,-500.0,0.00019996,2]
[349939747,1737523834623,-500.0,0.00019996,2]
[349939748,1737523834632,-500.0,0.00019996,2]
[349939749,1737523834642,-500.0,0.00019996,2]
[349939750,1737523834652,-500.0,0.00019996,2]
[349939751,1737523834662,-500.0,0.00019996,2]
[349939752,1737523834671,-519.9297751,0.00019996,2]
[349939753,1737523834680,-500.0,0.00019996,2]
[349939754,1737523834690,-500.0,0.00019996,2]
[349939755,1737523834699,-507.59232478,0.00019996,2]
[349939756,1737523834709,-500.0,0.00019996,2]
[349939757,1737523834718,-500.0,0.00019996,2]
[349939758,1737523834728,-500.0,0.00019996,2]
[349939759,1737523834737,-500.0,0.00019996,2]
[349939760,1737523834748,-500.0,0.00019996,2]
[349939761,1737523834757,-500.0,0.00019996,2]
[349939762,1737523834766,-504.95784729,0.00019996,2]
[349939763,1737523834775,-500.0,0.00019996,2]
[349939764,1737523834785,-500.0,0.00019996,2]
[349939765,1737523834794,-885.16,0.00019996,2]
[349939766,1737523834804,-500.0,0.00019996,2]
[349939767,1737523834813,-500.0,0.00019996,2]
[349939768,1737523834823,-500.0,0.00019996,2]
[349939769,1737523834833,-699.68,0.00019996,2]
[349939770,1737523834842,-500.0,0.00019996,2]
[349939771,1737523834852,-1204.8,0.00019996,2]
[349939772,1737523834863,-500.0,0.00019996,2]
[349939773,1737523834872,-500.0,0.00019996,2]
[349939774,1737523835055,-500.0,0.00019996,2]
[349939775,1737523835065,-1117.52,0.00019996,2]
[349939776,1737523835075,-500.0,0.00019996,2]
[349939777,1737523835085,-523.82,0.00019996,2]
[349939778,1737523835094,-500.0,0.00019996,2]
[349939779,1737523835104,-502.47491964,0.00019996,2]
[349939780,1737523835114,-500.0,0.00019996,2]
[349939781,1737523835124,-500.0,0.00019996,2]
[349939782,1737523835133,-500.0,0.00019996,2]
[349939783,1737523835143,-500.0,0.00019996,2]
[349939784,1737523835152,-468.71514508,0.00019996,2]
[349939785,1737523835163,-1451.35,0.00019996,2]
[349939786,1737523835172,-500.0,0.00019996,2]
[349939787,1737523835182,-500.0,0.00019996,2]
[349939788,1737523835191,-500.0,0.00019996,2]
[349939789,1737523835201,-805.12,0.00019996,2]
[349939790,1737523835215,-500.0,0.00019996,2]
[349939791,1737523835226,-500.0,0.00019996,2]
[349939792,1737523835236,-352.0998606,0.00019996,2]
[349939793,1737523835245,-1055.86,0.00019996,2]
[349939794,1737523835255,-500.0,0.00019996,2]
[349939795,1737523835265,-500.0,0.00019996,2]
[349939796,1737523835274,-500.0,0.00019996,2]
[349939797,1737523835284,-426.15055854,0.00019996,2]
[349939798,1737523835294,-973.37,0.00019996,2]
[349939799,1737523835304,-500.0,0.00019996,2]
[349939800,1737523835315,-500.0,0.00019996,2]
[349939801,1737523835324,-500.0,0.00019996,2]
[349939802,1737523835334,-962.68,0.00019996,2]
[349939803,1737523835343,-1169.83,0.00019996,2]
[349939804,1737523835353,-749.67,0.00019996,2]
[349939805,1737523835363,-512.52384005,0.00019996,2]
[349939806,1737523835373,-778.75,0.00019996,2]
[349939807,1737523835382,-500.0,0.00019996,2]
[349939808,1737523835391,-651.5,0.00019996,2]
[349939809,1737523835400,-500.0,0.00019996,2]
[349939810,1737523835410,-500.0,0.00019996,2]
[349939811,1737523835419,-500.0,0.00019996,2]
[349939812,1737523835428,-1050.63,0.00019996,2]
[349939813,1737523835438,-507.25806282,0.00019996,2]
[349939814,1737523835448,-500.0,0.00019996,2]
[349939815,1737523835457,-500.0,0.00019996,2]
[349939816,1737523835467,-500.0,0.00019996,2]
[349939817,1737523835476,-500.0,0.00019996,2]
[349939818,1737523835485,-762.01,0.00019996,2]
[349939819,1737523835495,-1388.8,0.00019996,2]
[349939820,1737523835507,-500.0,0.00019996,2]
[349939821,1737523835516,-671.08,0.00019996,2]
[349939822,1737523835527,-500.0,0.00019996,2]
[349939823,1737523835536,-500.0,0.00019996,2]
[349939824,1737523835545,-500.0,0.00019996,2]
[349939825,1737523835555,-502.85577398,0.00019996,2]
[349939826,1737523835564,-1297.31,0.00019996,2]
[349939827,1737523835573,-500.0,0.00019996,2]
[349939828,1737523835582,-500.0,0.00019996,2]
[349939829,1737523835591,-500.0,0.00019996,2]
[349939830,1737523835600,-500.0,0.00019996,2]
[349939831,1737523835610,-500.0,0.00019996,2]
[349939832,1737523835619,-500.0,0.00019996,2]
[349939833,1737523835628,-500.49161057,0.00019996,2]
[349939834,1737523835638,-500.0,0.00019996,2]
[349939835,1737523835647,-500.0,0.00019996,2]
[349939836,1737523835656,-500.0,0.00019996,2]
[349939837,1737523835665,-500.0,0.00019996,2]
[349939838,1737523835675,-500.0,0.00019996,2]
[349939839,1737523835684,-505.4988823,0.00019996,2]
[349939840,1737523835693,-500.0,0.00019996,2]
[349939841,1737523835702,-509.52724837,0.00019996,2]
[349939842,1737523835711,-500.0,0.00019996,2]
[349939843,1737523835721,-500.0,0.00019996,2]
[349939844,1737523835730,-500.0,0.00019996,2]
[349939845,1737523835739,-1089.26,0.00019996,2]
[349939846,1737523835749,-504.77632521,0.00019996,2]
[349939847,1737523835758,-500.0,0.00019996,2]
[349939848,1737523835767,-500.0,0.00019996,2]
[349939849,1737523835776,-500.0,0.00019996,2]
[349939850,1737523835785,-500.0,0.00019996,2]
[349939851,1737523835795,-500.0,0.00019996,2]
[349939852,1737523835805,-500.0,0.00019996,2]
[349939853,1737523835814,-500.0,0.00019996,2]
[349939854,1737523835827,-500.0,0.00019996,2]
[349939855,1737523835838,-593.57,0.00019996,2]
[349939856,1737523835848,-500.0,0.00019996,2]
[349939857,1737523835857,-500.0,0.00019996,2]
[349939858,1737523835868,-794.83,0.00019996,2]
[349939859,1737523835877,-500.0,0.00019996,2]
[349939860,1737523835887,-1034.03,0.00019996,2]
[349939861,1737523835896,-500.0,0.00019996,2]
[349939862,1737523835905,-500.0,0.00019996,2]
[349939863,1737523835915,-500.0,0.00019996,2]
[349939864,1737523835925,-336.81214281,0.00019996,2]
[349939865,1737523835935,-1240.54,0.00019996,2]
[349939866,1737523835944,-500.0,0.00019996,2]
[349939867,1737523835954,-1117.23,0.00019996,2]
[349939868,1737523835964,-500.0,0.00019996,2]
[349939869,1737523835973,-500.0,0.00019996,2]
[349939870,1737523835983,-500.0,0.00019996,2]
[349939871,1737523835992,-500.0,0.00019996,2]
[349939872,1737523836001,-568.07847523,0.00019996,2]
[349939873,1737523836011,-500.0,0.00019996,2]
[349939874,1737523836021,-500.0,0.00019996,2]
[349939875,1737523836032,-500.0,0.00019996,2]
[349939876,1737523836042,-163.72946289,0.00019996,2]
[349939877,1737523836052,-500.0,0.00019996,2]
[349939878,1737523836062,-500.0,0.00019996,2]
[349939879,1737523836072,-1219.78,0.00019996,2]
[349939880,1737523836081,-749.13,0.00019996,2]
[349939881,1737523836091,-500.0,0.00019996,2]
[349939882,1737523836101,-500.0,0.00019996,2]
[349939883,1737523836110,-500.0,0.00019996,2]
[349939884,1737523836119,-500.0,0.00019996,2]
[349939885,1737523836129,-508.52794617,0.00019996,2]
[349939886,1737523836139,-500.0,0.00019996,2]
[349939887,1737523836150,-500.0,0.00019996,2]
[349939888,1737523836160,-500.0,0.00019996,2]
[349939889,1737523836169,-801.91,0.00019996,2]
[349939890,1737523836178,-504.22643919,0.00019996,2]
[349939891,1737523836188,-500.0,0.00019996,2]
[349939892,1737523836198,-500.0,0.00019996,2]
[349939893,1737523836211,-566.49,0.00019996,2]
[349939894,1737523836223,-500.0,0.00019996,2]
[349939895,1737523836233,-507.89218134,0.00019996,2]
[349939896,1737523836244,-500.0,0.00019996,2]
[349939897,1737523836255,-500.0,0.00019996,2]
[349939898,1737523836265,-964.74,0.00019996,2]
[349939899,1737523836274,-679.76,0.00019996,2]
[349939900,1737523836284,-755.34,0.00019996,2]
[349939901,1737523836294,-500.0,0.00019996,2]
[349939902,1737523836304,-500.0,0.00019996,2]
[349939903,1737523836313,-1442.71,0.00019996,2]
[349939904,1737523836323,-500.0,0.00019996,2]
[349939905,1737523836332,-500.0,0.00019996,2]
[349939906,1737523836341,-526.64,0.00019996,2]
[349939907,1737523836351,-500.0,0.00019996,2]
[349939908,1737523836360,-1180.75,0.00019996,2]
[349939909,1737523836370,-500.0,0.00019996,2]
[349939910,1737523836380,-500.0,0.00019996,2]
[349939911,1737523836390,-1540.66,0.00019996,2]
[349939912,1737523836399,-500.0,0.00019996,2]
[349939913,1737523836409,-875.63,0.00019996,2]
[349939914,1737523836418,-2048.91,0.00019996,2]
[349939915,1737523836428,-500.0,0.00019996,2]
[349939916,1737523836438,-1240.04,0.00019996,2]
[349939917,1737523836448,-2888.97,0.00019996,2]
[349939918,1737523836457,-500.0,0.00019996,2]
[349939919,1737523836466,-500.0,0.00019996,2]
[349939920,1737523836475,-500.0,0.00019996,2]
[349939921,1737523836484,-6368.45,0.00019996,2]
[349939922,1737523836493,-569.02,0.00019996,2]
[349939923,1737523836502,-771.46,0.00019996,2]
[349939924,1737523836511,-500.0,0.00019996,2]
[349939925,1737523836521,-10836.86,0.00019996,2]
[349939926,1737523836530,-500.0,0.00019996,2]
[349939927,1737523836540,-500.0,0.00019996,2]
[349939928,1737523836549,-504.55324492,0.00019996,2]
[349939929,1737523836558,-246.48262511,0.00019996,2]
[349939930,1737523836567,-500.0,0.00019996,2]
[349939931,1737523836576,-500.0,0.00019996,2]
[349939932,1737523836586,-1371.38,0.00019996,2]
[349939933,1737523836595,-500.0,0.00019996,2]
[349939934,1737523836604,-500.0,0.00019996,2]
[349939935,1737523836614,-850.32,0.00019996,2]
[349939936,1737523836624,-500.0,0.00019996,2]
[349939937,1737523836633,-514.73330224,0.00019996,2]
[349939938,1737523836643,-152.82163206,0.00019996,2]
[349939939,1737523836655,-500.0,0.00019996,2]
[349939940,1737523836664,-500.0,0.00019996,2]
[349939941,1737523836673,-888.27,0.00019996,2]
[349939942,1737523836682,-512.22690672,0.00019996,2]
[349939943,1737523836691,-500.0,0.00019996,2]
[349939944,1737523836700,-2984.72,0.00019996,2]
[349939945,1737523836710,-500.0,0.00019996,2]
[349939946,1737523836719,-500.0,0.00019996,2]
[349939947,1737523836728,-500.0,0.00019996,2]
[349939948,1737523836740,-1001.11,0.00019996,2]
[349939949,1737523836752,-500.0,0.00019996,2]
[349939950,1737523836761,-500.0,0.00019996,2]
[349939951,1737523836770,-717.28,0.00019996,2]
[349939952,1737523836779,-1281.82,0.00019996,2]
[349939953,1737523836788,-672.93,0.00019996,2]
[349939954,1737523836798,-553.9,0.00019996,2]
[349939955,1737523836807,-500.0,0.00019996,2]
[349939956,1737523836816,-1785.45,0.00019996,2]
[349939957,1737523836826,-502.15365608,0.00019996,2]
[349939958,1737523836835,-500.0,0.00019996,2]
[349939959,1737523836844,-500.0,0.00019996,2]
[349939960,1737523836853,-1941.04,0.00019996,2]
[349939961,1737523836864,-500.0,0.00019996,2]
[349939962,1737523836873,-500.0,0.00019996,2]
[349939963,1737523836882,-515.11,0.00019996,2]
[349939964,1737523836891,-514.77,0.00019996,2]
[349939965,1737523836901,-500.0,0.00019996,2]
[349939966,1737523836911,-500.0,0.00019996,2]
[349939967,1737523836921,-500.0,0.00019996,2]
[349939968,1737523836931,-1000.0,0.00019996,2]
[349939969,1737523836941,-500.0,0.00019996,2]
[349939970,1737523836950,-1144.74,0.00019996,2]
[349939971,1737523836960,-500.0,0.00019996,2]
[349939972,1737523836970,-662.67,0.00019996,2]
[349939973,1737523836979,-500.0,0.00019996,2]
[349939974,1737523836989,-938.83,0.00019996,2]
[349939975,1737523837000,-618.44,0.00019996,2]
[349939976,1737523837009,-500.0,0.00019996,2]
[349939977,1737523837020,-500.0,0.00019996,2]
[349939978,1737523837029,-555.53064745,0.00019996,2]
[349939979,1737523837040,-2642.11,0.00019996,2]
[349939980,1737523837050,-636.39,0.00019996,2]
[349939981,1737523837059,-150.64022147,0.00019996,2]
[349939982,1737523837070,-2316.56,0.00019996,2]
[349939983,1737523837079,-500.0,0.00019996,2]
[349939984,1737523837088,-500.0,0.00019996,2]
[349939985,1737523837099,-507.25732807,0.00019996,2]
[349939986,1737523837108,-1122.06,0.00019996,2]
[349939987,1737523837118,-500.0,0.00019996,2]
[349939988,1737523837127,-500.0,0.00019996,2]
[349939989,1737523837139,-198.54543626,0.00019996,2]
[349939990,1737523837148,-500.0,0.00019996,2]
[349939991,1737523837158,-500.0,0.00019996,2]
[349939992,1737523837167,-500.0,0.00019996,2]
[349939993,1737523837177,-500.0,0.00019996,2]
[349939994,1737523837188,-503.61004599,0.00019996,2]
[349939995,1737523837201,-500.0,0.00019996,2]
[349939996,1737523837214,-500.0,0.00019996,2]
[349939997,1737523837225,-500.0,0.00019996,2]
[349939998,1737523837234,-151.31458618,0.00019996,2]
[349939999,1737523837244,-494.81862295,0.00019997,2]
[349940000,1737523837254,-344.361479,0.00019997,2]
[349940001,1737523837264,-183.18905179,0.00019997,2]
[349940002,1737523837274,-500.0,0.00019997,2]
[349940003,1737523837283,-504.66745656,0.00019997,2]
[349940004,1737523837293,-509.94582094,0.00019997,2]
[349940005,1737523837303,-251.09268828,0.00019997,2]
[349940006,1737523837312,-500.0,0.00019997,2]
[349940007,1737523837322,-508.91509294,0.00019997,2]
[349940009,1737523837331,-500.0,0.00019997,2]
[349940010,1737523837342,-2000.0,0.00019997,2]
[349940012,1737523837351,-200.0,0.00019997,2]
[349940014,1737523837361,-500.0,0.00019997,2]
[349940015,1737523837414,-500.0,0.00019997,2]
[349940016,1737523837424,-500.0,0.00019997,2]
[349940017,1737523837434,-500.0,0.00019997,2]
[349940018,1737523837444,-500.0,0.00019997,2]
[349940019,1737523837453,-434.82464841,0.00019997,2]
[349940020,1737523837463,-500.0,0.00019997,2]
[349940021,1737523837472,-503.10594851,0.00019997,2]
[349940022,1737523837481,-500.0,0.00019997,2]
[349940023,1737523837490,-500.0,0.00019997,2]
[349940024,1737523837499,-388.80165442,0.00019997,2]
[349940025,1737523837509,-500.0,0.00019997,2]
[349940026,1737523837518,-500.0,0.00019997,2]
[349940027,1737523837527,-500.0,0.00019997,2]
[349940028,1737523837536,-161.30204374,0.00019997,2]
[349940029,1737523837546,-500.0,0.00019997,2]
[349940030,1737523837555,-500.0,0.00019997,2]
[349940031,1737523837565,-500.0,0.00019997,2]
[349940032,1737523837574,-500.0,0.00019997,2]
[349940033,1737523837583,-503.06078781,0.00019997,2]
[349940034,1737523837593,-500.0,0.00019997,2]
[349940035,1737523837602,-500.0,0.00019997,2]
[349940036,1737523837612,-500.0,0.00019997,2]
[349940037,1737523837621,-500.0,0.00019997,2]
[349940038,1737523837630,-500.0,0.00019997,2]
[349940039,1737523837639,-757.5,0.00019997,2]
[349940040,1737523837649,-528.76169656,0.00019997,2]
[349940041,1737523837658,-420.79750231,0.00019997,2]
[349940042,1737523837668,-500.0,0.00019997,2]
[349940043,1737523837677,-500.0,0.00019997,2]
[349940044,1737523837687,-1474.73,0.00019997,2]
[349940045,1737523837696,-558.38,0.00019997,2]
[349940046,1737523837705,-808.84,0.00019997,2]
[349940047,1737523837714,-779.3,0.00019997,2]
[349940048,1737523837724,-500.0,0.00019997,2]
[349940049,1737523837732,-500.0,0.00019997,2]
[349940050,1737523837741,-500.0,0.00019997,2]
[349940051,1737523837751,-1665.38,0.00019997,2]
[349940052,1737523837760,-964.06,0.00019997,2]
[349940053,1737523837770,-1282.8,0.00019997,2]
[349940054,1737523837779,-515.34415788,0.00019997,2]
[349940055,1737523837789,-978.12,0.00019997,2]
[349940056,1737523837799,-622.41216658,0.00019997,2]
[349940057,1737523837808,-500.0,0.00019997,2]
[349940058,1737523837817,-500.0,0.00019997,2]
[349940059,1737523837827,-944.38,0.00019997,2]
[349940060,1737523837836,-500.0,0.00019997,2]
[349940061,1737523837845,-500.0,0.00019997,2]
[349940062,1737523837855,-500.0,0.00019997,2]
[349940063,1737523837865,-500.0,0.00019997,2]
[349940064,1737523837874,-500.0,0.00019997,2]
[349940065,1737523837884,-3000.0,0.00019997,2]
[349940066,1737523837893,-500.0,0.00019997,2]
[349940068,1737523837902,-500.0,0.00019999,2]
[349940070,1737523837911,-22802.30324961,0.0002,2]
[349940071,1737523837921,-10000.0,0.0002,2]
[349940072,1737523837930,-12500.0,0.0002,2]
[349940073,1737523837940,-12500.0,0.0002,2]
[349940074,1737523837949,-10494.0,0.0002,2]
[349940075,1737523837959,-60680.65499141,0.0002,14]
[349940077,1737523837968,-12500.0,0.0002,2]
[349940079,1737523837978,-2489.98994664,0.0002,4]
[349940081,1737523837988,-10000.0,0.0002,2]
[349940082,1737523837997,-100402.84852565,0.0002,2]
[349940083,1737523838006,-61446.2124091,0.0002,4]
[349940084,1737523838016,-151.0,0.0002,2]
[349940085,1737523838027,-12500.0,0.0002,2]
[349940086,1737523838036,-412.77465,0.0002,2]
[349940087,1737523838045,-412.77465,0.0002,2]
[349940088,1737523838055,-151.0,0.0002,2]
[349940089,1737523838064,-12500.0,0.0002,2]
[349940090,1737523838074,-151.0,0.0002,2]
[349940091,1737523838083,-999.0,0.0002,2]
[349940092,1737523838093,-151.0,0.0002,2]
[349940093,1737523838103,-155.075813,0.0002,2]
[349940094,1737523838112,-10000.0,0.0002,2]
[349940095,1737523838121,-152.928724,0.0002,2]
[349940096,1737523838131,-10000.0,0.0002,2]
[349940097,1737523838140,-12500.0,0.0002,2]
[349940098,1737523838150,-204.83879448,0.00020025,2]
[349940099,1737523838161,-196.656917,0.0002004,2]
[349940100,1737523838170,-151.0,0.0002004,2]
[349940101,1737523838179,-197.806318,0.0002004,2]
[349940102,1737523838189,-151.0,0.0002004,2]
[349940103,1737523838199,-151.0,0.0002004,2]
[349940104,1737523838209,-151.0,0.0002004,2]
[349940105,1737523838220,-12500.0,0.0002004,2]
[349940106,1737523838229,-12500.0,0.0002004,2]
[349940107,1737523838238,-2987.85,0.00020041,2]
[349940108,1737523838247,-2153.26097637,0.00020119,2]
[349940109,1737523838257,-3000.0,0.0002014,2]
[349940110,1737523838266,-5000.0,0.0002015,2]
[349940111,1737523838275,-204.83879448,0.0002015,2]
[349940112,1737523838284,-153.086133,0.00020172,2]
[349940113,1737523838294,-2000.0,0.00020197,2]
[349940114,1737523838303,-200.0,0.00020197,2]
[349940115,1737523838312,-349.19099605,0.00020231,2]
[349940116,1737523838321,-160.758,0.0002024,2]
[349940117,1737523838331,-154.04,0.00020268,2]
[349940118,1737523838340,-500.0,0.00020268,2]
[349940119,1737523838350,-3439.12,0.00020268,2]
[349940120,1737523838359,-1195.01,0.00020268,2]
[349940121,1737523838368,-947.41,0.00020268,2]
[349940122,1737523838378,-1398.09,0.00020268,2]
[349940123,1737523838387,-569.59,0.00020268,2]
[349940124,1737523838396,-500.0,0.00020268,2]
[349940125,1737523838405,-963.87,0.00020268,2]
[349940126,1737523838414,-537.45,0.00020268,2]
[349940127,1737523838423,-2491.86,0.00020268,2]
[349940128,1737523838432,-1235.41,0.00020268,2]
[349940129,1737523838441,-881.57,0.00020268,2]
[349940130,1737523838450,-500.0,0.00020268,2]
[349940131,1737523838459,-2240.42,0.00020268,2]
[349940132,1737523838468,-1947.51,0.00020268,2]
[349940133,1737523838477,-500.0,0.00020268,2]
[349940134,1737523838487,-885.46,0.00020268,2]
[349940135,1737523838496,-500.0,0.00020268,2]
[349940136,1737523838506,-500.0,0.00020268,2]
[349940137,1737523838515,-500.0,0.00020268,2]
[349940138,1737523838525,-3194.99,0.00020268,2]
[349940139,1737523838534,-500.0,0.00020268,2]
[349940140,1737523838543,-1031.76,0.00020268,2]
[349940141,1737523838552,-500.0,0.00020268,2]
[349940142,1737523838561,-500.0,0.00020268,2]
[349940143,1737523838570,-500.0,0.00020268,2]
[349940144,1737523838579,-757.76,0.00020268,2]
[349940145,1737523838588,-717.98,0.00020268,2]
[349940146,1737523838598,-649.17,0.00020268,2]
[349940147,1737523838607,-620.7,0.00020269,2]
[349940148,1737523838617,-500.0,0.00020269,2]
[349940149,1737523838626,-947.32,0.00020269,2]
[349940150,1737523838635,-1120.52,0.00020269,2]
[349940151,1737523838646,-500.0,0.00020269,2]
[349940152,1737523838656,-757.53,0.00020269,2]
[349940153,1737523838666,-603.13,0.00020269,2]
[349940154,1737523838675,-500.0,0.00020269,2]
[349940155,1737523838683,-551.71,0.00020269,2]
[349940156,1737523838700,-1182.13,0.00020269,2]
[349940157,1737523838710,-500.0,0.00020269,2]
[349940158,1737523838720,-500.0,0.00020269,2]